bitfinex-derivatives/quotes_ETHF0:USTF0_20260131
["timestamp","ask_amount","ask_price","bid_price","bid_amount"]
[1769881117195,3.92965599,2408.6,2406.6,2.36551753]
[1769881117391,3.92965599,2408.6,2406.8,2.36551753]
[1769881117996,3.92965599,2409.7,2407.0,2.36551753]
[1769881118198,3.93431171,2409.7,2407.0,2.36961421]
[1769881118396,3.93431171,2409.7,2407.2,2.36551753]
[1769881119101,3.93431171,2409.7,2407.0,0.00409668]
[1769881119102,3.92965599,2409.5,2407.0,0.00409668]
[1769881119495,3.92965599,2409.2,2407.0,0.00409668]
[1769881120095,3.92965599,2409.2,2407.1,2.37120605]
[1769881121705,3.92965599,2409.2,2407.1,2.57923605]
[1769881122198,3.92965599,2409.2,2407.0,0.00409668]
[1769881122795,4.09096292,2409.0,2407.0,0.00409668]
[1769881123002,4.09096292,2409.0,2407.0,2.43269387]
[1769881124203,4.09096292,2409.0,2407.0,2.64073387]
[1769881124399,4.09096292,2409.0,2407.2,2.42859719]
[1769881124898,4.09096292,2409.5,2407.4,2.36600614]
[1769881125106,4.09096292,2409.5,2407.6,2.36600614]
[1769881125299,4.09096292,2409.3,2407.0,0.00409668]
[1769881125505,4.09096292,2409.3,2407.0,2.37010282]
[1769881126005,4.29881292,2409.3,2407.0,0.00409668]
[1769881126705,4.29881292,2409.3,2407.1,2.25830399]
[1769881129407,4.29881292,2409.3,2407.0,0.00409668]
[1769881129706,4.29881292,2409.3,2407.0,2.23052148]
[1769881130107,4.29881292,2409.3,2407.0,0.00409668]
[1769881130403,4.09096292,2409.1,2407.0,0.00409668]
[1769881130602,4.09096292,2408.9,2407.0,0.00409668]
[1769881130907,4.29889292,2408.3,2405.9,3.323]
[1769881131102,4.09096292,2408.0,2405.9,3.323]
[1769881131499,4.09096292,2407.4,2405.9,3.323]
[1769881131703,4.09096292,2407.4,2404.9,2.23154792]
[1769881131903,4.30365422,2407.4,2404.9,0.00397631]
[1769881132402,4.30365422,2407.4,2404.9,2.23552423]
[1769881133003,4.09564422,2407.4,2404.9,2.23552423]
[1769881133203,4.09564422,2407.4,2405.7,0.20815]
[1769881133409,4.09564422,2407.4,2405.7,2.50657034]
[1769881133906,4.09564422,2407.4,2405.0,2.29842034]
[1769881134106,4.09564422,2407.4,2405.0,2.50664034]
[1769881134306,4.09564422,2407.4,2405.2,2.29842034]
[1769881135209,4.09564422,2407.4,2405.2,2.50662034]
[1769881135406,4.09564422,2407.4,2405.4,2.3029684]
[1769881136605,4.09564422,2407.4,2405.0,2.30400859]
[1769881137308,4.09096292,2407.2,2404.9,0.00397631]
[1769881137709,4.09096292,2407.2,2404.9,2.3079849]
[1769881138507,4.09096292,2407.2,2404.9,0.00397631]
[1769881138709,4.29899292,2407.2,2404.9,0.00397631]
[1769881139706,4.29899292,2407.2,2404.9,2.31767629]
[1769881140109,4.09096292,2407.2,2404.9,2.52589629]
[1769881140303,4.09096292,2407.2,2405.1,2.31369998]
[1769881140509,4.09096292,2407.2,2404.9,0.00397631]
[1769881140714,4.09096292,2407.2,2404.9,2.2101583]
[1769881140912,4.09096292,2407.2,2405.1,2.20618199]
[1769881141113,4.09096292,2407.2,2405.1,2.41438199]
[1769881141807,4.09096292,2407.2,2404.9,0.00397631]
[1769881142006,4.09096292,2407.2,2404.9,2.2101583]
[1769881142211,4.09096292,2407.2,2405.1,2.20618199]
[1769881142407,4.09096292,2407.2,2405.1,2.41439199]
[1769881143008,4.09096292,2407.2,2405.4,2.19165652]
[1769881143307,0.0046813,2407.4,2405.9,2.19165652]
[1769881143506,4.09564422,2407.4,2406.0,3.325]
[1769881145010,4.09096292,2406.9,2404.9,0.00397631]
[1769881145213,4.29902292,2406.9,2404.9,0.00397631]
[1769881145512,4.09096292,2406.7,2404.4,3.325]
[1769881145713,4.09096292,2406.2,2404.4,3.325]
[1769881146110,4.29910292,2406.0,2403.2,2.18410505]
[1769881146316,4.09096292,2406.0,2403.7,2.18410505]
[1769881146611,4.09096292,2406.0,2403.7,2.18839328]
[1769881146812,4.09096292,2406.0,2403.7,2.52726069]
[1769881147013,4.09096292,2406.0,2403.7,2.18839328]
[1769881147209,4.09096292,2406.0,2403.7,0.00428823]
[1769881147409,3.79925707,2405.8,2403.7,0.00428823]
[1769881148409,3.79925707,2405.8,2403.7,2.21631433]
[1769881149012,3.79925707,2405.8,2403.7,0.00428823]
[1769881149217,4.00741707,2405.8,2403.7,0.00428823]
[1769881149721,3.79925707,2405.6,2403.7,0.00428823]
[1769881149915,4.01253827,2405.6,2403.7,0.00428823]
[1769881150918,3.80436827,2405.6,2403.7,0.00428823]
[1769881151219,3.80436827,2405.6,2403.7,2.08788339]
[1769881151421,3.80436827,2405.6,2403.7,0.00428823]
[1769881152920,3.80436827,2405.6,2403.7,2.09664425]
[1769881154320,3.79925707,2406.0,2404.0,2.09235602]
[1769881154620,3.79925707,2406.0,2404.2,2.09235602]
[1769881155317,3.79925707,2407.0,2404.7,2.05878054]
[1769881155518,3.79925707,2407.0,2404.9,2.05878054]
[1769881155723,3.79925707,2407.0,2404.9,2.26700054]
[1769881156021,3.79925707,2407.0,2405.1,2.05878054]
[1769881156221,4.1348668,2408.7,2405.4,2.05878054]
[1769881156422,3.80333119,2408.7,2405.6,2.05878054]
[1769881157023,4.01123119,2408.7,2405.8,1.96056322]
[1769881157317,3.79925707,2408.3,2405.5,5.28756322]
[1769881157522,3.79925707,2408.1,2405.5,3.327]
[1769881157722,3.79925707,2407.9,2405.5,3.327]
[1769881157917,3.79925707,2407.8,2405.5,3.327]
[1769881158118,4.00723707,2407.8,2405.5,3.327]
[1769881158521,3.79925707,2407.2,2405.5,3.327]
[1769881159225,3.79925707,2407.2,2405.5,5.23910963]
[1769881159424,3.79925707,2408.6,2405.6,1.91210963]
[1769881159727,3.79925707,2408.6,2405.6,2.12026963]
[1769881161420,3.79925707,2408.6,2405.8,2.02054553]
[1769881163126,3.79925707,2408.6,2405.5,3.327]
[1769881163127,3.79925707,2408.6,2406.0,2.00580208]
[1769881163421,3.79925707,2408.6,2406.0,2.21393208]
[1769881163629,3.79925707,2408.6,2405.9,5.1948607]
[1769881163630,3.79925707,2408.6,2405.9,2.501]
[1769881163829,3.79925707,2408.6,2405.6,2.00580208]
[1769881163830,3.79925707,2407.8,2405.5,3.327]
[1769881164231,3.79925707,2407.5,2405.5,3.327]
[1769881164432,3.79925707,2407.2,2405.5,3.327]
[1769881164725,3.79925707,2407.0,2405.4,0.00301918]
[1769881164926,3.80429072,2407.0,2405.4,0.00301918]
[1769881169034,0.00503365,2407.0,2405.6,2.13745112]
[1769881169334,3.79925707,2407.5,2405.6,2.13745112]
[1769881169937,3.79925707,2407.5,2405.5,3.326]
[1769881170332,3.80233453,2407.5,2405.6,2.13745112]
[1769881170737,3.80233453,2407.5,2405.5,3.326]
[1769881172537,3.80233453,2407.5,2405.5,2.12748605]
[1769881173631,3.80233453,2407.5,2405.4,0.00301918]
[1769881173940,3.80233453,2407.5,2405.4,2.13050523]
[1769881174336,0.00307746,2407.5,2405.7,2.12748605]
[1769881174532,0.00307746,2407.5,2405.4,0.00301918]
[1769881174533,3.80233453,2407.5,2405.4,2.13013744]
[1769881174739,3.80233453,2407.5,2405.4,0.00301918]
[1769881175247,3.79925707,2407.1,2405.4,0.00301918]
[1769881175539,4.00729707,2407.1,2405.4,0.00301918]
[1769881176141,3.79925707,2406.9,2405.0,3.326]
[1769881176339,3.79925707,2406.1,2404.3,2.567]
[1769881176538,3.79925707,2406.1,2403.6,3.84848707]
[1769881177435,4.00738707,2406.1,2403.6,3.84848707]
[1769881177636,3.98355599,2405.9,2403.6,0.00485298]
[1769881177837,3.98355599,2405.9,2403.6,3.88941707]
[1769881178036,4.19169599,2405.9,2403.6,0.00485298]
[1769881178240,4.19169599,2405.9,2403.6,3.88941707]
[1769881179139,0.20815,2405.8,2403.6,0.00485298]
[1769881179345,3.98355599,2405.7,2403.6,0.00485298]
[1769881179644,3.98355599,2405.7,2403.6,3.88941707]
[1769881182053,3.91908083,2405.8,2404.1,4.04206364]
[1769881182940,3.91908083,2405.8,2403.7,4.04206364]
[1769881185139,3.91908083,2405.8,2403.6,0.00485298]
[1769881185343,3.91908083,2405.8,2403.6,4.04691662]
[1769881187043,3.91908083,2405.8,2403.8,4.04206364]
[1769881188344,3.91908083,2405.8,2403.6,0.00485298]
[1769881188950,4.12271355,2405.6,2403.6,0.00485298]
[1769881189648,4.12271355,2405.6,2403.6,4.04691662]
[1769881190348,3.91454355,2405.3,2403.6,0.00485298]
[1769881190550,3.91454355,2405.3,2403.6,4.04691662]
[1769881190846,3.91454355,2405.3,2403.7,4.04206364]
[1769881191046,3.91454355,2405.7,2403.7,4.04206364]
[1769881191548,0.00453728,2405.8,2403.7,4.04206364]
[1769881191549,0.00453728,2405.8,2403.9,4.04206364]
[1769881191746,3.91454355,2405.7,2403.6,0.00485298]
[1769881191952,3.91454355,2405.7,2403.6,4.04691662]
[1769881193148,3.91454355,2405.7,2403.6,4.25525662]
[1769881193848,3.91454355,2405.7,2403.6,4.04691662]
[1769881196153,3.91454355,2405.7,2403.7,4.04206364]
[1769881198949,3.91454355,2405.7,2403.6,0.00485298]
[1769881199151,3.91454355,2405.7,2403.6,4.04691662]
[1769881199550,4.12270355,2405.7,2403.6,0.00485298]
[1769881199750,3.91454355,2405.4,2403.6,0.00485298]
[1769881200350,4.12273355,2405.4,2403.6,0.00485298]
[1769881200848,3.91454355,2404.7,2403.0,3.328]
[1769881201049,3.91454355,2404.7,2403.1,4.04206364]
[1769881201354,3.91454355,2405.4,2403.9,4.04691662]
[1769881201551,3.91454355,2405.4,2403.9,4.04206364]
[1769881201853,3.91454355,2405.4,2403.9,0.00344814]
[1769881202451,3.91908083,2405.8,2404.3,4.04206364]
[1769881203155,3.91454355,2406.2,2404.9,4.04691662]
[1769881203348,3.91454355,2407.4,2404.9,4.04206364]
[1769881203754,3.91454355,2407.2,2404.9,4.04206364]
[1769881203955,3.91454355,2407.0,2404.5,4.04206364]
[1769881204155,4.12263355,2406.5,2404.5,4.04206364]
[1769881204346,3.91454355,2406.5,2404.5,4.04206364]
[1769881204557,3.91454355,2406.5,2405.1,4.04206364]
[1769881204952,3.91454355,2406.5,2404.5,4.04206364]
[1769881205456,3.91454355,2406.5,2404.4,3.328]
[1769881205756,3.91454355,2406.5,2404.5,4.04206364]
[1769881205958,3.91454355,2406.5,2405.0,4.04206364]
[1769881206347,3.91454355,2406.9,2405.5,4.04691662]
[1769881206557,3.91454355,2406.9,2405.0,4.04206364]
[1769881207153,3.91454355,2406.9,2404.5,4.07653266]
[1769881207657,4.11606915,2406.4,2404.5,4.07653266]
[1769881208157,3.90796915,2406.4,2404.6,4.07653266]
[1769881208349,3.90796915,2406.4,2404.6,4.08138564]
[1769881208952,3.90796915,2406.4,2404.4,3.328]
[1769881209852,4.11606915,2406.4,2404.4,3.328]
[1769881210253,3.90796915,2406.2,2404.4,3.328]
[1769881210456,3.90796915,2406.2,2404.5,4.07653266]
[1769881210654,3.90796915,2406.2,2404.7,4.08138564]
[1769881210860,3.90796915,2406.2,2404.4,3.328]
[1769881211161,3.90796915,2406.2,2404.5,4.07653266]
[1769881211551,3.90796915,2406.2,2404.4,3.328]
[1769881211958,3.90796915,2406.2,2404.4,3.33285298]
[1769881212350,3.90796915,2406.2,2404.4,7.40453266]
[1769881212659,3.90796915,2406.2,2404.5,0.00485298]
[1769881213756,3.90796915,2406.0,2404.4,3.328]
[1769881214156,4.11610915,2406.0,2404.4,3.328]
[1769881214463,3.90796915,2406.3,2404.9,4.07653266]
[1769881215058,3.90796915,2406.3,2405.4,0.00485298]
[1769881215254,0.00401998,2407.0,2405.4,0.00485298]
[1769881215255,0.00401998,2407.0,2405.4,4.07653266]
[1769881215557,3.91198913,2407.0,2405.8,4.08138564]
[1769881215757,2.30718321,2408.2,2405.8,4.08138564]
[1769881215758,3.90796915,2407.8,2405.8,4.42530922]
[1769881216058,3.90796915,2407.8,2405.8,0.00407079]
[1769881216260,3.90796915,2407.8,2405.9,4.08138564]
[1769881216455,3.90796915,2407.8,2406.5,4.08138564]
[1769881216654,3.90796915,2408.6,2406.5,4.08138564]
[1769881216952,3.9116413,2408.6,2406.7,4.07653266]
[1769881217560,3.9116413,2408.6,2406.3,4.07653266]
[1769881217764,4.11589915,2408.4,2406.3,4.07653266]
[1769881217958,3.90796915,2408.2,2405.8,0.00407079]
[1769881218267,3.90796915,2407.8,2405.8,0.00407079]
[1769881219268,3.90796915,2407.5,2405.8,0.00407079]
[1769881219663,3.90796915,2407.2,2404.7,4.07653266]
[1769881219870,3.90796915,2406.8,2404.7,4.07653266]
[1769881220065,3.90796915,2406.8,2404.6,0.33158213]
[1769881220066,3.90796915,2406.8,2404.9,4.07653266]
[1769881220362,3.90796915,2406.8,2405.5,4.07653266]
[1769881220764,3.91213936,2406.8,2405.5,0.00405027]
[1769881221163,4.12020936,2406.8,2405.5,0.00405027]
[1769881221362,3.91213936,2406.8,2404.6,0.33458425]
[1769881221663,3.91213936,2406.8,2404.5,3.327]
[1769881221664,4.11604915,2406.6,2404.5,3.327]
[1769881221969,3.90796915,2406.1,2404.5,3.327]
[1769881222169,3.90796915,2405.8,2404.5,3.327]
[1769881222359,3.90796915,2405.4,2403.5,4.07653266]
[1769881222767,3.90796915,2405.4,2403.6,0.00485298]
[1769881223468,4.11615915,2405.4,2403.6,0.00906036]
[1769881223671,4.11615915,2405.4,2403.6,0.00420738]
[1769881223672,3.90796915,2405.4,2403.6,0.00420738]
[1769881223972,3.90796915,2404.8,2402.6,4.07653266]
[1769881224466,3.90796915,2404.4,2402.2,4.07653266]
[1769881224670,3.90796915,2404.2,2402.2,4.07653266]
[1769881224870,3.90796915,2404.2,2402.2,0.00316479]
[1769881224871,4.11628915,2403.8,2402.2,0.00316479]
[1769881225166,3.90796915,2403.5,2401.5,4.07653266]
[1769881225373,3.90796915,2403.5,2402.1,4.07653266]
[1769881225671,3.90796915,2403.5,2401.7,4.08138564]
[1769881225871,3.90796915,2403.5,2401.4,0.00485298]
[1769881226069,3.90796915,2403.5,2401.4,0.00845522]
[1769881226275,3.90796915,2403.5,2402.0,4.08138564]
[1769881226473,3.90796915,2403.5,2402.0,4.07653266]
[1769881226673,3.90796915,2403.5,2402.1,0.00485298]
[1769881226873,3.90796915,2403.5,2401.4,0.00360224]
[1769881227276,3.90796915,2403.0,2401.4,0.00360224]
[1769881227576,3.90796915,2403.0,2400.2,2.71563]
[1769881227577,3.90796915,2403.0,2400.7,4.07653266]
[1769881227771,3.90796915,2403.0,2400.1,3.328]
[1769881227772,0.20846,2402.2,2400.1,3.328]
[1769881227976,3.90796915,2402.1,2400.1,7.40453266]
[1769881228172,3.90796915,2402.1,2400.6,4.07653266]
[1769881228377,3.90796915,2402.1,2400.4,0.00485298]
[1769881228574,3.90796915,2402.1,2399.3,4.07653266]
[1769881228872,0.34041732,2402.2,2398.1,0.20881]
[1769881228873,3.90796915,2400.6,2398.1,4.07653266]
[1769881229072,3.90796915,2399.9,2397.0,4.41623993]
[1769881229272,3.90796915,2399.9,2397.0,4.07653266]
[1769881229273,3.90796915,2399.4,2397.0,4.07653266]
[1769881229472,3.329,2399.9,2396.4,3.329]
[1769881229473,3.90796915,2399.1,2396.4,3.329]
[1769881229778,3.90796915,2399.1,2395.3,3.329]
[1769881229779,3.90796915,2398.2,2395.3,3.329]
[1769881230173,0.00302965,2398.2,2395.6,0.20903]
[1769881230372,3.90796915,2399.1,2396.3,0.20897]
[1769881230574,3.90796915,2399.1,2395.8,3.33]
[1769881230775,3.90796915,2399.1,2395.8,3.33485298]
[1769881230978,3.90796915,2398.9,2395.8,3.33]
[1769881231184,3.90796915,2398.9,2395.9,0.20901]
[1769881231385,3.91320697,2398.9,2397.0,4.07653266]
[1769881231574,0.00523782,2398.9,2397.2,4.07653266]
[1769881231779,0.00523782,2398.9,2397.9,0.00485298]
[1769881231982,3.90796915,2399.8,2398.6,0.00485298]
[1769881232179,3.90796915,2399.8,2397.2,4.07653266]
[1769881232384,3.90796915,2399.8,2397.7,4.07653266]
[1769881232578,3.90796915,2399.8,2397.1,3.331]
[1769881232579,3.90796915,2399.8,2398.0,4.07653266]
[1769881232982,0.00423864,2399.8,2398.7,4.07653266]
[1769881233183,3.90796915,2400.2,2398.7,4.08109107]
[1769881233382,3.90796915,2401.3,2399.6,0.00485298]
[1769881233584,3.90796915,2401.3,2399.0,4.08138564]
[1769881233778,3.90796915,2401.3,2399.2,4.08138564]
[1769881234083,3.90796915,2401.1,2398.7,0.00455841]
[1769881234277,3.90796915,2400.6,2398.7,0.00455841]
[1769881234477,3.90796915,2400.3,2398.7,0.00455841]
[1769881234780,3.90796915,2400.3,2394.6,27.39578131]
[1769881234781,3.90796915,2400.0,2397.6,4.07653266]
[1769881234981,3.90796915,2399.2,2397.3,3.332]
[1769881235287,4.11671915,2398.9,2396.6,4.07653266]
[1769881235487,3.90796915,2398.6,2396.1,4.07653266]
[1769881235691,3.91149351,2398.6,2396.6,4.07653266]
[1769881235877,3.91149351,2398.6,2396.9,0.00485298]
[1769881236077,3.91149351,2398.6,2397.0,4.07653266]
[1769881236282,0.00352436,2398.6,2397.9,0.00485298]
[1769881236482,3.90796915,2400.2,2397.9,4.08084353]
[1769881236781,3.90796915,2399.6,2397.9,0.00431087]
[1769881236981,3.332,2400.3,2396.1,3.333]
[1769881236982,3.93334137,2398.8,2396.1,3.333]
[1769881237185,3.93334137,2398.8,2396.2,4.05176913]
[1769881237387,3.93334137,2398.5,2396.2,4.05176913]
[1769881237783,3.93334137,2398.5,2396.5,4.06093298]
[1769881237989,3.93637457,2398.5,2396.5,4.06517729]
[1769881238184,3.93637457,2398.5,2396.6,0.00916385]
[1769881238690,3.93637457,2398.5,2397.4,0.00916385]
[1769881238884,3.93637457,2398.5,2397.1,4.05176913]
[1769881239285,0.0030332,2398.5,2397.4,4.05176913]
[1769881239582,3.93334137,2399.1,2397.0,0.00916385]
[1769881239777,3.93334137,2399.1,2397.1,4.05176913]
[1769881239988,3.93334137,2399.1,2397.8,0.00916385]
[1769881240189,3.93334137,2399.1,2397.1,7.38676913]
[1769881240387,3.93845145,2399.1,2397.1,7.38676913]
[1769881240586,4.14718145,2399.1,2397.1,3.335]
[1769881240987,4.14718145,2399.1,2397.2,4.05176913]
[1769881241286,4.14718145,2399.1,2397.1,3.335]
[1769881241685,3.93845145,2399.1,2397.2,3.81529677]
[1769881241879,3.93845145,2399.1,2397.6,3.82446062]
[1769881242080,3.93845145,2399.1,2397.8,3.82446062]
[1769881242281,0.00511008,2399.1,2397.8,3.81529677]
[1769881242486,3.71517186,2399.6,2398.7,0.00916385]
[1769881242688,3.71517186,2399.6,2398.2,3.81529677]
[1769881242891,3.71517186,2400.1,2399.0,0.00916385]
[1769881243085,3.71517186,2400.1,2398.7,0.00916385]
[1769881243284,3.71517186,2399.6,2397.2,3.81529677]
[1769881243480,3.71962603,2399.6,2397.4,3.81529677]
[1769881243790,3.71517186,2399.1,2397.2,0.00453313]
[1769881244685,3.71517186,2398.3,2396.0,3.81529677]
[1769881245290,3.92397186,2398.3,2396.0,3.81529677]
[1769881245679,3.92397186,2398.3,2396.0,3.81828178]
[1769881247885,3.71517186,2398.3,2396.0,3.81828178]
[1769881249784,3.92398186,2398.3,2396.0,3.81828178]
[1769881250184,3.71517186,2398.3,2396.0,3.81828178]
[1769881250594,3.92397186,2398.3,2396.0,3.81828178]
[1769881251091,3.71517186,2397.8,2396.0,3.81828178]
[1769881251293,3.71970951,2397.8,2396.0,3.81828178]
[1769881251487,3.71517186,2397.5,2396.0,0.00298501]
[1769881252791,3.71517186,2397.5,2396.0,3.81828178]
[1769881254894,3.71970951,2397.8,2396.0,0.00298501]
[1769881255397,3.71970951,2397.8,2396.0,3.81828178]
[1769881256793,3.71970951,2397.8,2396.0,0.00298501]
[1769881257194,3.92854951,2397.8,2396.0,0.00298501]
[1769881257695,3.92854951,2397.8,2396.0,3.81828178]
[1769881259900,3.71970951,2397.8,2396.0,3.81828178]
[1769881260496,3.71517186,2397.3,2396.0,0.00298501]
[1769881260997,3.71517186,2397.3,2396.0,3.81828178]
[1769881261301,0.00453765,2397.8,2396.0,4.02727178]
[1769881261502,3.71970951,2397.8,2396.0,4.02727178]
[1769881261696,0.00453765,2397.8,2396.1,0.20899]
[1769881261900,3.71517186,2399.0,2396.6,3.81529677]
[1769881262097,3.71517186,2399.4,2397.0,0.20891]
[1769881262298,4.05015884,2400.2,2397.1,4.02419677]
[1769881262498,3.92382186,2400.0,2397.1,4.02419677]
[1769881262801,3.71895499,2400.0,2397.3,3.81529677]
[1769881262993,3.71895499,2400.0,2396.3,0.20897]
[1769881262994,3.71517186,2399.1,2396.8,3.81529677]
[1769881263196,3.71517186,2398.9,2396.8,3.81529677]
[1769881263892,3.71517186,2399.5,2396.8,3.81529677]
[1769881264298,3.71517186,2399.2,2396.8,3.81529677]
[1769881264501,3.92389186,2399.2,2396.8,3.81529677]
[1769881264896,3.71517186,2399.2,2396.8,3.81529677]
[1769881265302,3.92389186,2399.2,2396.8,3.81529677]
[1769881265994,3.71517186,2399.0,2396.8,3.81529677]
[1769881266306,3.71517186,2398.5,2396.2,3.81529677]
[1769881267303,3.97525594,2398.3,2396.2,3.81529677]
[1769881267504,3.97997608,2398.3,2396.2,3.81529677]
[1769881271296,3.97525594,2397.7,2396.1,3.338]
[1769881271502,3.97525594,2397.5,2396.1,3.338]
[1769881271998,3.97525594,2397.5,2396.2,3.74719096]
[1769881272204,3.97525594,2397.5,2396.1,3.338]
[1769881272400,3.97525594,2397.5,2396.0,0.00298501]
[1769881272603,3.97525594,2397.5,2396.0,3.75017597]
[1769881273501,3.97525594,2397.5,2396.0,0.00298501]
[1769881273701,3.97525594,2397.1,2396.0,0.00298501]
[1769881273906,3.97525594,2397.1,2395.5,3.74719096]
[1769881274801,3.97525594,2397.1,2395.5,3.75233921]
[1769881275404,4.18416594,2397.1,2395.5,0.00514825]
[1769881275708,3.97525594,2396.9,2395.5,0.00514825]
[1769881277203,3.97525594,2397.3,2395.6,3.74719096]
[1769881277399,3.97525594,2397.8,2395.6,3.74719096]
[1769881277602,3.97525594,2398.2,2395.6,3.74719096]
[1769881278202,0.00472014,2398.3,2396.3,3.74719096]
[1769881278405,3.97997608,2398.3,2396.5,3.74719096]
[1769881278809,0.20884,2397.8,2396.0,3.74719096]
[1769881279008,3.97525594,2397.7,2396.0,3.74719096]
[1769881279211,3.97525594,2398.1,2396.0,3.74719096]
[1769881280305,3.97525594,2397.9,2396.0,3.74719096]
[1769881280503,3.97525594,2397.7,2395.6,3.74719096]
[1769881280705,3.97525594,2397.3,2395.6,3.74719096]
[1769881281705,3.97525594,2397.8,2395.6,3.74719096]
[1769881282906,3.97997608,2398.3,2395.6,3.74719096]
[1769881283318,3.97997608,2398.3,2395.7,2.71015608]
[1769881283506,0.00472014,2398.3,2395.8,3.74719096]
[1769881284406,3.97997608,2398.3,2395.8,3.74719096]
[1769881284811,0.00472014,2398.3,2395.8,3.74719096]
[1769881285010,0.00472014,2398.3,2396.2,3.74719096]
[1769881285214,0.00472014,2398.3,2396.2,6.20919096]
[1769881285510,3.97997608,2398.3,2396.3,3.74719096]
[1769881285715,3.97997608,2398.3,2396.5,3.74719096]
[1769881286310,0.00472014,2398.3,2396.5,3.74719096]
[1769881287312,3.97525594,2399.7,2397.2,3.74719096]
[1769881287907,4.18393594,2399.7,2397.2,3.74719096]
[1769881288308,3.97525594,2399.4,2397.2,3.75094599]
[1769881288511,4.18398594,2399.1,2397.2,3.75094599]
[1769881288812,3.97525594,2398.7,2397.2,0.00375503]
[1769881289208,4.18402594,2398.7,2397.2,0.00375503]
[1769881289413,3.97525594,2398.5,2397.2,0.00375503]
[1769881290312,3.97525594,2398.3,2396.4,7.08619096]
[1769881290518,3.97525594,2398.1,2396.5,3.74719096]
[1769881291307,3.97525594,2398.1,2396.5,3.75062415]
[1769881291515,3.97525594,2398.5,2396.5,3.75062415]
[1769881292018,3.97525594,2399.6,2396.7,3.74719096]
[1769881292316,3.97525594,2399.6,2397.2,3.74719096]
[1769881292516,0.00455559,2399.7,2397.4,3.95606096]
[1769881292713,0.00455559,2399.7,2397.7,3.95603096]
[1769881292918,3.97981153,2399.7,2397.7,3.95603096]
[1769881293218,0.00455559,2399.7,2397.9,3.74719096]
[1769881293618,3.97525594,2400.6,2398.3,3.74719096]
[1769881293816,3.97525594,2400.6,2398.3,3.95599096]
[1769881294116,0.20854,2401.3,2398.5,3.74719096]
[1769881294117,3.97525594,2401.2,2398.5,3.74719096]
[1769881294317,3.97525594,2401.2,2398.7,3.74719096]
[1769881294521,3.97525594,2401.6,2398.9,3.74719096]
[1769881294721,3.98038029,2401.6,2399.4,3.74719096]
[1769881294914,3.98038029,2401.6,2399.6,3.74719096]
[1769881294915,0.00512435,2401.6,2399.6,3.74719096]
[1769881295716,3.98038029,2401.6,2399.6,3.74719096]
[1769881296313,3.98038029,2401.6,2399.5,7.08519096]
[1769881296618,4.18890029,2401.6,2399.6,3.74719096]
[1769881296916,4.18890029,2401.6,2399.6,3.52004312]
[1769881297120,3.98038029,2401.6,2399.6,3.52004312]
[1769881298124,0.00512435,2401.6,2399.6,3.52004312]
[1769881298326,4.07633766,2402.4,2399.5,3.338]
[1769881298715,4.07633766,2402.9,2400.0,2.71015608]
[1769881298916,4.07633766,2402.9,2400.4,3.85144145]
[1769881299114,4.07633766,2403.3,2400.8,3.85144145]
[1769881299318,4.07633766,2403.3,2401.0,3.85144145]
[1769881299518,4.08054962,2403.3,2401.0,3.85144145]
[1769881300020,4.07633766,2403.1,2400.9,3.337]
[1769881300220,4.07633766,2403.1,2401.0,3.85144145]
[1769881300524,4.07633766,2403.1,2400.9,3.34098244]
[1769881300726,4.07633766,2402.7,2400.9,3.34098244]
[1769881301122,4.07633766,2402.4,2400.9,3.34098244]
[1769881301520,4.03173954,2402.2,2399.8,3.76776275]
[1769881301923,4.03173954,2402.0,2399.8,3.76776275]
[1769881302523,4.03173954,2402.0,2399.8,3.7724095]
[1769881303528,4.24028954,2401.2,2399.3,3.336]
[1769881303726,4.24028954,2401.2,2399.4,3.76776275]
[1769881304227,4.24028954,2401.2,2399.3,7.10376275]
[1769881304524,4.24557665,2401.2,2399.3,3.34007326]
[1769881304919,0.20866,2400.0,2397.9,3.335]
[1769881305118,4.24040954,2399.9,2397.9,3.335]
[1769881305724,0.20867,2399.9,2397.9,7.10276275]
[1769881305931,4.03173954,2400.3,2398.1,3.76776275]
[1769881306131,4.03173954,2399.8,2397.9,3.34032032]
[1769881306332,4.24040954,2399.8,2397.9,0.00532032]
[1769881306724,4.24040954,2399.8,2397.9,3.77308307]
[1769881307125,4.03173954,2399.6,2397.9,0.00532032]
[1769881307330,4.03173954,2399.9,2398.2,3.76776275]
[1769881307531,4.03173954,2400.3,2398.2,3.76776275]
[1769881307731,4.03173954,2400.3,2398.5,3.76776275]
[1769881308131,4.03173954,2400.1,2398.0,7.10376275]
[1769881308335,4.03173954,2399.8,2398.0,7.10376275]
[1769881308630,4.03173954,2399.5,2398.0,3.336]
[1769881308831,4.03550371,2399.5,2398.0,3.336]
[1769881309431,4.03550371,2399.5,2397.9,0.00532032]
[1769881309631,4.03173954,2399.1,2397.9,0.00532032]
[1769881310132,4.24047954,2399.1,2397.1,3.76776275]
[1769881310733,4.03173954,2398.6,2396.8,3.336]
[1769881311128,4.03173954,2398.6,2396.8,3.34068239]
[1769881311333,0.00376417,2399.5,2396.8,3.34068239]
[1769881311334,4.03173954,2398.3,2396.8,3.34068239]
[1769881312132,4.24053954,2398.3,2396.8,0.00468239]
[1769881312533,4.03173954,2397.8,2395.8,3.76776275]
[1769881312924,4.24057954,2397.8,2395.8,3.76776275]
[1769881313135,4.03173954,2397.6,2395.8,3.76776275]
[1769881313433,0.00322516,2397.6,2395.9,3.76776275]
[1769881313628,0.00322516,2397.6,2396.7,2.4556506]
[1769881313829,0.00322516,2397.6,2396.6,2.4556506]
[1769881314026,4.03173954,2398.0,2396.5,3.76776275]
[1769881314228,4.03173954,2398.0,2395.8,0.00361557]
[1769881314229,4.03173954,2397.8,2395.9,3.76776275]
[1769881314430,4.24057954,2397.8,2395.8,0.00361557]
[1769881314624,4.24057954,2397.8,2395.8,3.77137832]
[1769881315036,4.03173954,2397.5,2395.8,3.77137832]
[1769881315536,4.03173954,2397.5,2395.9,6.15378539]
[1769881315729,4.03173954,2397.5,2396.2,2.38602264]
[1769881315930,0.00518623,2397.8,2396.5,3.76776275]
[1769881316138,4.03173954,2397.7,2396.5,3.76776275]
[1769881316336,4.03173954,2397.7,2396.8,2.38602264]
[1769881316532,4.03173954,2397.7,2397.0,2.38602264]
[1769881316732,4.03692577,2397.8,2395.9,3.76776275]
[1769881316931,4.03173954,2397.3,2395.8,0.00361557]
[1769881317133,4.24066954,2396.8,2394.7,3.76776275]
[1769881317329,4.24066954,2396.8,2394.9,3.76776275]
[1769881317631,4.24066954,2396.8,2395.3,3.76776275]
[1769881318132,0.00518623,2397.8,2395.3,0.00366]
[1769881318133,4.03173954,2396.6,2395.3,0.00366]
[1769881318328,4.03173954,2396.4,2395.3,0.00366]
[1769881318529,4.24070954,2396.4,2395.3,0.00366]
[1769881318730,4.24070954,2396.4,2394.5,3.76776275]
[1769881319031,4.24070954,2396.4,2394.6,2.38602264]
[1769881319540,4.24070954,2396.4,2394.7,2.38602264]
[1769881319732,4.03173954,2396.0,2394.7,0.00370052]
[1769881319933,4.03645153,2396.0,2394.7,0.00370052]